Workbook

Sheet Lists
A1: Genus
A2: Baryonyx
A3: Eustreptospondylus
A4: Megalosaurus
A5: Tyrannosaurus
A6: Albertosaurus
A7: Compsognathus
A8: Ornithomimus
A9: Therizinosaurus
A10: Oviraptor
A11: Microraptor
A12: Deinonychus
A13: Velociraptor
A14: Troodon
A15: Archaeopteryx
A16: Allosaurus
A17: Neovenator
A18: Carcharodontosaurus
A19: Giganotosaurus
A20: Mapusaurus

Sheet db
A1: Month | B1: Genus | C1: Stat 1 | D1: Stat 2 | E1: Stat 3 | F1: Stat 4 | G1: Stat 5 | H1: Stat 6 | I1: Stat 7 | J1: Stat 8 | K1: Stat 9 | L1: Stat 10
A2: 2015-01-01 | B2: Baryonyx | C2: 7 | D2: 38 | E2: 46 | F2: 35 | G2: 25 | H2: 110 | I2: 2300 | J2: 93045 | K2: 0.43 | L2: 319721
A3: 2015-01-01 | B3: Eustreptospondylus | C3: 4 | D3: 9 | E3: 44 | F3: 11 | G3: 31 | H3: 843 | I3: 3932 | J3: 84838 | K3: 0.42 | L3: 622204
A4: 2015-01-01 | B4: Megalosaurus | C4: 0 | D4: 2 | E4: 32 | F4: 3 | G4: 106 | H4: 45 | I4: 2205 | J4: 87897 | K4: 0.18 | L4: 722912
A5: 2015-01-01 | B5: Tyrannosaurus | C5: 4 | D5: 11 | E5: 98 | F5: 18 | G5: 169 | H5: 904 | I5: 2497 | J5: 52305 | K5: 0.68 | L5: 219668
A6: 2015-01-01 | B6: Albertosaurus | C6: 7 | D6: 10 | E6: 61 | F6: 212 | G6: 91 | H6: 751 | I6: 3971 | J6: 88693 | K6: 0.39 | L6: 369741
A7: 2015-01-01 | B7: Compsognathus | C7: 8 | D7: 33 | E7: 21 | F7: 130 | G7: 145 | H7: 67 | I7: 4659 | J7: 30316 | K7: 0.71 | L7: 836219
A8: 2015-01-01 | B8: Ornithomimus | C8: 2 | D8: 43 | E8: 94 | F8: 166 | G8: 210 | H8: 434 | I8: 3970 | J8: 55778 | K8: 0.62 | L8: 8977
A9: 2015-01-01 | B9: Therizinosaurus | C9: 4 | D9: 3 | E9: 67 | F9: 31 | G9: 85 | H9: 58 | I9: 714 | J9: 31449 | K9: 0.69 | L9: 823611
A10: 2015-01-01 | B10: Oviraptor | C10: 0 | D10: 4 | E10: 4 | F10: 193 | G10: 180 | H10: 624 | I10: 4083 | J10: 99917 | K10: 0.07 | L10: 787207
A11: 2015-01-01 | B11: Microraptor | C11: 9 | D11: 41 | E11: 33 | F11: 112 | G11: 157 | H11: 79 | I11: 3575 | J11: 82648 | K11: 0.4 | L11: 222545
A12: 2015-01-01 | B12: Deinonychus | C12: 7 | D12: 50 | E12: 4 | F12: 165 | G12: 142 | H12: 481 | I12: 1747 | J12: 27456 | K12: 0.91 | L12: 30743
A13: 2015-01-01 | B13: Velociraptor | C13: 4 | D13: 15 | E13: 84 | F13: 136 | G13: 44 | H13: 103 | I13: 375 | J13: 30296 | K13: 0.59 | L13: 597851
A14: 2015-01-01 | B14: Troodon | C14: 1 | D14: 13 | E14: 77 | F14: 201 | G14: 178 | H14: 992 | I14: 220 | J14: 97566 | K14: 0.95 | L14: 122947
A15: 2015-01-01 | B15: Archaeopteryx | C15: 4 | D15: 16 | E15: 31 | F15: 166 | G15: 85 | H15: 323 | I15: 2749 | J15: 37204 | K15: 0.04 | L15: 843087
A16: 2015-01-01 | B16: Allosaurus | C16: 5 | D16: 24 | E16: 32 | F16: 166 | G16: 7 | H16: 612 | I16: 1564 | J16: 72010 | K16: 0.62 | L16: 9505
A17: 2015-01-01 | B17: Neovenator | C17: 7 | D17: 41 | E17: 41 | F17: 219 | G17: 173 | H17: 926 | I17: 4636 | J17: 54223 | K17: 0 | L17: 252688
A18: 2015-01-01 | B18: Carcharodontosaurus | C18: 7 | D18: 46 | E18: 1 | F18: 36 | G18: 127 | H18: 134 | I18: 1336 | J18: 95478 | K18: 0.79 | L18: 293184
A19: 2015-01-01 | B19: Giganotosaurus | C19: 3 | D19: 14 | E19: 88 | F19: 164 | G19: 157 | H19: 734 | I19: 1160 | J19: 90832 | K19: 0.95 | L19: 57966
A20: 2015-01-01 | B20: Mapusaurus | C20: 3 | D20: 19 | E20: 81 | F20: 104 | G20: 150 | H20: 62 | I20: 768 | J20: 91621 | K20: 0.1 | L20: 646223
A21: 2015-02-01 | B21: Baryonyx | C21: 4 | D21: 35 | E21: 59 | F21: 223 | G21: 25 | H21: 785 | I21: 1679 | J21: 42201 | K21: 0.28 | L21: 699704
A22: 2015-02-01 | B22: Eustreptospondylus | C22: 2 | D22: 24 | E22: 22 | F22: 54 | G22: 92 | H22: 841 | I22: 1713 | J22: 49229 | K22: 0.72 | L22: 269786
A23: 2015-02-01 | B23: Megalosaurus | C23: 1 | D23: 31 | E23: 7 | F23: 74 | G23: 50 | H23: 492 | I23: 3815 | J23: 99941 | K23: 0.77 | L23: 691784
A24: 2015-02-01 | B24: Tyrannosaurus | C24: 5 | D24: 2 | E24: 73 | F24: 75 | G24: 221 | H24: 482 | I24: 3982 | J24: 55930 | K24: 0.03 | L24: 316997
A25: 2015-02-01 | B25: Albertosaurus | C25: 1 | D25: 28 | E25: 10 | F25: 133 | G25: 69 | H25: 933 | I25: 3237 | J25: 53899 | K25: 0.38 | L25: 888304
A26: 2015-02-01 | B26: Compsognathus | C26: 2 | D26: 12 | E26: 86 | F26: 6 | G26: 179 | H26: 366 | I26: 2424 | J26: 31626 | K26: 0.08 | L26: 77037
A27: 2015-02-01 | B27: Ornithomimus | C27: 6 | D27: 19 | E27: 98 | F27: 12 | G27: 35 | H27: 523 | I27: 3814 | J27: 32738 | K27: 0.22 | L27: 720084
A28: 2015-02-01 | B28: Therizinosaurus | C28: 6 | D28: 42 | E28: 36 | F28: 183 | G28: 65 | H28: 985 | I28: 3661 | J28: 84736 | K28: 0.21 | L28: 550989
A29: 2015-02-01 | B29: Oviraptor | C29: 3 | D29: 15 | E29: 74 | F29: 189 | G29: 57 | H29: 30 | I29: 1153 | J29: 18072 | K29: 0.16 | L29: 547605
A30: 2015-02-01 | B30: Microraptor | C30: 6 | D30: 16 | E30: 43 | F30: 63 | G30: 127 | H30: 65 | I30: 1961 | J30: 43797 | K30: 0.95 | L30: 16375
A31: 2015-02-01 | B31: Deinonychus | C31: 1 | D31: 8 | E31: 69 | F31: 125 | G31: 185 | H31: 162 | I31: 1919 | J31: 39895 | K31: 0.79 | L31: 713556
A32: 2015-02-01 | B32: Velociraptor | C32: 1 | D32: 36 | E32: 22 | F32: 146 | G32: 205 | H32: 802 | I32: 2 | J32: 95176 | K32: 0.69 | L32: 725752
A33: 2015-02-01 | B33: Troodon | C33: 9 | D33: 14 | E33: 86 | F33: 181 | G33: 142 | H33: 585 | I33: 4903 | J33: 60165 | K33: 0.09 | L33: 711645
A34: 2015-02-01 | B34: Archaeopteryx | C34: 9 | D34: 28 | E34: 22 | F34: 26 | G34: 31 | H34: 267 | I34: 483 | J34: 42338 | K34: 0.24 | L34: 482584
A35: 2015-02-01 | B35: Allosaurus | C35: 5 | D35: 25 | E35: 13 | F35: 222 | G35: 45 | H35: 794 | I35: 1143 | J35: 31298 | K35: 0.22 | L35: 16340
A36: 2015-02-01 | B36: Neovenator | C36: 10 | D36: 31 | E36: 53 | F36: 161 | G36: 173 | H36: 685 | I36: 472 | J36: 13610 | K36: 0.49 | L36: 330537
A37: 2015-02-01 | B37: Carcharodontosaurus | C37: 8 | D37: 28 | E37: 90 | F37: 53 | G37: 41 | H37: 429 | I37: 3804 | J37: 27652 | K37: 0.97 | L37: 354658
A38: 2015-02-01 | B38: Giganotosaurus | C38: 3 | D38: 42 | E38: 94 | F38: 29 | G38: 26 | H38: 225 | I38: 1949 | J38: 13734 | K38: 0.34 | L38: 886114
A39: 2015-02-01 | B39: Mapusaurus | C39: 8 | D39: 23 | E39: 41 | F39: 60 | G39: 59 | H39: 703 | I39: 596 | J39: 3918 | K39: 0.73 | L39: 549732
A40: 2015-03-01 | B40: Baryonyx | C40: 6 | D40: 46 | E40: 36 | F40: 65 | G40: 3 | H40: 891 | I40: 2250 | J40: 86823 | K40: 0.4 | L40: 814142
A41: 2015-03-01 | B41: Eustreptospondylus | C41: 3 | D41: 13 | E41: 60 | F41: 34 | G41: 104 | H41: 33 | I41: 2451 | J41: 56605 | K41: 0.2 | L41: 425583
A42: 2015-03-01 | B42: Megalosaurus | C42: 5 | D42: 20 | E42: 6 | F42: 67 | G42: 108 | H42: 786 | I42: 3149 | J42: 65499 | K42: 0.28 | L42: 544197
A43: 2015-03-01 | B43: Tyrannosaurus | C43: 6 | D43: 10 | E43: 81 | F43: 122 | G43: 41 | H43: 368 | I43: 4347 | J43: 75188 | K43: 0.63 | L43: 659957
A44: 2015-03-01 | B44: Albertosaurus | C44: 2 | D44: 40 | E44: 9 | F44: 196 | G44: 49 | H44: 632 | I44: 1727 | J44: 91732 | K44: 0.83 | L44: 419810
A45: 2015-03-01 | B45: Compsognathus | C45: 1 | D45: 12 | E45: 15 | F45: 2 | G45: 117 | H45: 261 | I45: 707 | J45: 23214 | K45: 0.74 | L45: 367795
A46: 2015-03-01 | B46: Ornithomimus | C46: 8 | D46: 15 | E46: 52 | F46: 20 | G46: 88 | H46: 287 | I46: 3728 | J46: 24674 | K46: 0.4 | L46: 986903
A47: 2015-03-01 | B47: Therizinosaurus | C47: 8 | D47: 11 | E47: 5 | F47: 10 | G47: 18 | H47: 720 | I47: 302 | J47: 98832 | K47: 0.36 | L47: 486825
A48: 2015-03-01 | B48: Oviraptor | C48: 1 | D48: 40 | E48: 15 | F48: 171 | G48: 38 | H48: 511 | I48: 2960 | J48: 62444 | K48: 0.38 | L48: 13729
A49: 2015-03-01 | B49: Microraptor | C49: 8 | D49: 7 | E49: 93 | F49: 37 | G49: 185 | H49: 650 | I49: 4607 | J49: 80193 | K49: 0.51 | L49: 234531
A50: 2015-03-01 | B50: Deinonychus | C50: 3 | D50: 32 | E50: 76 | F50: 184 | G50: 24 | H50: 998 | I50: 645 | J50: 46832 | K50: 0.91 | L50: 593746
A51: 2015-03-01 | B51: Velociraptor | C51: 2 | D51: 40 | E51: 45 | F51: 0 | G51: 81 | H51: 4 | I51: 2134 | J51: 47036 | K51: 0.25 | L51: 360902
A52: 2015-03-01 | B52: Troodon | C52: 1 | D52: 7 | E52: 15 | F52: 149 | G52: 102 | H52: 296 | I52: 3088 | J52: 79167 | K52: 0.77 | L52: 125746
A53: 2015-03-01 | B53: Archaeopteryx | C53: 0 | D53: 1 | E53: 55 | F53: 34 | G53: 40 | H53: 870 | I53: 1732 | J53: 9563 | K53: 0.16 | L53: 666755
A54: 2015-03-01 | B54: Allosaurus | C54: 1 | D54: 40 | E54: 11 | F54: 54 | G54: 14 | H54: 336 | I54: 1101 | J54: 25484 | K54: 0.19 | L54: 299122
A55: 2015-03-01 | B55: Neovenator | C55: 4 | D55: 13 | E55: 76 | F55: 111 | G55: 66 | H55: 99 | I55: 2633 | J55: 12515 | K55: 0.23 | L55: 254982
A56: 2015-03-01 | B56: Carcharodontosaurus | C56: 9 | D56: 7 | E56: 62 | F56: 171 | G56: 114 | H56: 11 | I56: 4166 | J56: 26369 | K56: 0.51 | L56: 790449
A57: 2015-03-01 | B57: Giganotosaurus | C57: 10 | D57: 9 | E57: 95 | F57: 18 | G57: 96 | H57: 384 | I57: 849 | J57: 63817 | K57: 0.19 | L57: 263201
A58: 2015-03-01 | B58: Mapusaurus | C58: 5 | D58: 48 | E58: 20 | F58: 141 | G58: 40 | H58: 525 | I58: 4345 | J58: 65069 | K58: 0.77 | L58: 253397
A59: 2015-04-01 | B59: Baryonyx | C59: 4 | D59: 12 | E59: 56 | F59: 39 | G59: 115 | H59: 660 | I59: 3964 | J59: 34872 | K59: 0.49 | L59: 146778
A60: 2015-04-01 | B60: Eustreptospondylus | C60: 7 | D60: 19 | E60: 99 | F60: 47 | G60: 152 | H60: 563 | I60: 208 | J60: 98009 | K60: 0.55 | L60: 289464
A61: 2015-04-01 | B61: Megalosaurus | C61: 2 | D61: 14 | E61: 61 | F61: 178 | G61: 197 | H61: 273 | I61: 1637 | J61: 11347 | K61: 0.21 | L61: 646994
A62: 2015-04-01 | B62: Tyrannosaurus | C62: 3 | D62: 32 | E62: 38 | F62: 17 | G62: 141 | H62: 636 | I62: 1572 | J62: 7445 | K62: 0.97 | L62: 604220
A63: 2015-04-01 | B63: Albertosaurus | C63: 1 | D63: 17 | E63: 96 | F63: 174 | G63: 168 | H63: 44 | I63: 2490 | J63: 26635 | K63: 0.05 | L63: 429473
A64: 2015-04-01 | B64: Compsognathus | C64: 5 | D64: 22 | E64: 12 | F64: 177 | G64: 81 | H64: 907 | I64: 2883 | J64: 14256 | K64: 0.76 | L64: 254793
A65: 2015-04-01 | B65: Ornithomimus | C65: 4 | D65: 30 | E65: 37 | F65: 138 | G65: 42 | H65: 88 | I65: 1908 | J65: 13063 | K65: 0.13 | L65: 452681
A66: 2015-04-01 | B66: Therizinosaurus | C66: 7 | D66: 24 | E66: 21 | F66: 158 | G66: 138 | H66: 695 | I66: 3216 | J66: 39078 | K66: 0.92 | L66: 337664
A67: 2015-04-01 | B67: Oviraptor | C67: 3 | D67: 8 | E67: 77 | F67: 131 | G67: 86 | H67: 105 | I67: 2348 | J67: 96172 | K67: 0.96 | L67: 847340
A68: 2015-04-01 | B68: Microraptor | C68: 5 | D68: 17 | E68: 8 | F68: 124 | G68: 125 | H68: 784 | I68: 1786 | J68: 56725 | K68: 0.32 | L68: 675156
A69: 2015-04-01 | B69: Deinonychus | C69: 2 | D69: 30 | E69: 98 | F69: 157 | G69: 164 | H69: 416 | I69: 1843 | J69: 53948 | K69: 0.67 | L69: 705948
A70: 2015-04-01 | B70: Velociraptor | C70: 5 | D70: 4 | E70: 26 | F70: 83 | G70: 147 | H70: 778 | I70: 2815 | J70: 1670 | K70: 0.52 | L70: 304700
A71: 2015-04-01 | B71: Troodon | C71: 3 | D71: 39 | E71: 61 | F71: 204 | G71: 132 | H71: 262 | I71: 4425 | J71: 54069 | K71: 0.81 | L71: 263764
A72: 2015-04-01 | B72: Archaeopteryx | C72: 9 | D72: 47 | E72: 61 | F72: 158 | G72: 85 | H72: 981 | I72: 3161 | J72: 78608 | K72: 0.57 | L72: 616106
A73: 2015-04-01 | B73: Allosaurus | C73: 6 | D73: 26 | E73: 78 | F73: 126 | G73: 26 | H73: 413 | I73: 2565 | J73: 40084 | K73: 0.43 | L73: 985661
A74: 2015-04-01 | B74: Neovenator | C74: 8 | D74: 18 | E74: 29 | F74: 73 | G74: 110 | H74: 262 | I74: 82 | J74: 46611 | K74: 0.1 | L74: 879201
A75: 2015-04-01 | B75: Carcharodontosaurus | C75: 10 | D75: 11 | E75: 98 | F75: 73 | G75: 102 | H75: 173 | I75: 1405 | J75: 46240 | K75: 0.45 | L75: 217329
A76: 2015-04-01 | B76: Giganotosaurus | C76: 6 | D76: 44 | E76: 97 | F76: 40 | G76: 114 | H76: 805 | I76: 1270 | J76: 77638 | K76: 0.68 | L76: 938215
A77: 2015-04-01 | B77: Mapusaurus | C77: 4 | D77: 10 | E77: 85 | F77: 29 | G77: 149 | H77: 237 | I77: 2163 | J77: 792 | K77: 0.4 | L77: 186107
A78: 2015-05-01 | B78: Baryonyx | C78: 10 | D78: 6 | E78: 12 | F78: 64 | G78: 117 | H78: 651 | I78: 4116 | J78: 33685 | K78: 0.81 | L78: 743220
A79: 2015-05-01 | B79: Eustreptospondylus | C79: 1 | D79: 27 | E79: 72 | F79: 136 | G79: 76 | H79: 33 | I79: 2057 | J79: 71721 | K79: 0.21 | L79: 41607
A80: 2015-05-01 | B80: Megalosaurus | C80: 4 | D80: 47 | E80: 11 | F80: 110 | G80: 125 | H80: 525 | I80: 1314 | J80: 58606 | K80: 0.5 | L80: 444929
A81: 2015-05-01 | B81: Tyrannosaurus | C81: 2 | D81: 21 | E81: 44 | F81: 58 | G81: 97 | H81: 153 | I81: 508 | J81: 96633 | K81: 0.01 | L81: 446466
A82: 2015-05-01 | B82: Albertosaurus | C82: 3 | D82: 19 | E82: 80 | F82: 65 | G82: 31 | H82: 28 | I82: 3435 | J82: 14245 | K82: 0.72 | L82: 599160
A83: 2015-05-01 | B83: Compsognathus | C83: 7 | D83: 1 | E83: 67 | F83: 134 | G83: 161 | H83: 517 | I83: 2105 | J83: 58975 | K83: 0.23 | L83: 639546
A84: 2015-05-01 | B84: Ornithomimus | C84: 2 | D84: 32 | E84: 16 | F84: 214 | G84: 84 | H84: 216 | I84: 3312 | J84: 31009 | K84: 0.32 | L84: 491261
A85: 2015-05-01 | B85: Therizinosaurus | C85: 0 | D85: 42 | E85: 11 | F85: 91 | G85: 159 | H85: 285 | I85: 1932 | J85: 43385 | K85: 0.62 | L85: 782224
A86: 2015-05-01 | B86: Oviraptor | C86: 4 | D86: 43 | E86: 58 | F86: 32 | G86: 224 | H86: 259 | I86: 1837 | J86: 27659 | K86: 0.28 | L86: 148614
A87: 2015-05-01 | B87: Microraptor | C87: 3 | D87: 37 | E87: 35 | F87: 23 | G87: 40 | H87: 198 | I87: 2781 | J87: 7769 | K87: 0.4 | L87: 777805
A88: 2015-05-01 | B88: Deinonychus | C88: 3 | D88: 12 | E88: 49 | F88: 95 | G88: 199 | H88: 875 | I88: 3231 | J88: 257 | K88: 0.13 | L88: 904965
A89: 2015-05-01 | B89: Velociraptor | C89: 4 | D89: 25 | E89: 3 | F89: 55 | G89: 106 | H89: 645 | I89: 72 | J89: 2260 | K89: 0.08 | L89: 374680
A90: 2015-05-01 | B90: Troodon | C90: 7 | D90: 49 | E90: 32 | F90: 62 | G90: 105 | H90: 958 | I90: 2692 | J90: 17611 | K90: 0.87 | L90: 733460
A91: 2015-05-01 | B91: Archaeopteryx | C91: 4 | D91: 38 | E91: 32 | F91: 151 | G91: 55 | H91: 686 | I91: 4755 | J91: 50725 | K91: 0.23 | L91: 874073
A92: 2015-05-01 | B92: Allosaurus | C92: 10 | D92: 12 | E92: 19 | F92: 79 | G92: 138 | H92: 126 | I92: 4575 | J92: 92848 | K92: 0.77 | L92: 992484
A93: 2015-05-01 | B93: Neovenator | C93: 5 | D93: 3 | E93: 58 | F93: 96 | G93: 137 | H93: 841 | I93: 2737 | J93: 37190 | K93: 0.55 | L93: 616238
A94: 2015-05-01 | B94: Carcharodontosaurus | C94: 3 | D94: 38 | E94: 95 | F94: 150 | G94: 179 | H94: 609 | I94: 4729 | J94: 97641 | K94: 0.04 | L94: 105167
A95: 2015-05-01 | B95: Giganotosaurus | C95: 2 | D95: 25 | E95: 58 | F95: 77 | G95: 210 | H95: 280 | I95: 4745 | J95: 30281 | K95: 0.8 | L95: 16236
A96: 2015-05-01 | B96: Mapusaurus | C96: 8 | D96: 12 | E96: 88 | F96: 87 | G96: 79 | H96: 647 | I96: 3085 | J96: 61655 | K96: 0.25 | L96: 398719

Sheet Report 1
A1: FALSE | B1: TRUE | C1: TRUE | D1: TRUE | E1: TRUE | F1: TRUE | G1: TRUE | H1: TRUE | I1: TRUE | J1: =$E$5="Compsognathus" -> FALSE | K1: TRUE | L1: TRUE | M1: TRUE | N1: TRUE | O1: TRUE
A2: TRUE
A3: TRUE | C3: ="Stat by Stat Multiplication | "&E5&" | "&TEXT(E7,"d/m/y")&" to "&TEXT(E8,"d/m/y") -> Stat by Stat Multiplication | Baryonyx | 1/1/15 to 1/5/15
A4: TRUE
A5: TRUE | D5: Genus | E5: Baryonyx
A6: TRUE
A7: TRUE | D7: Start Date | E7: 2015-01-01
A8: TRUE | D8: End Date | E8: 2015-05-01
A9: TRUE
A10: TRUE | E10: Stat 1 | F10: Stat 2 | G10: Stat 3 | H10: Stat 4 | I10: Stat 5 | K10: Stat 6 | L10: Stat 7 | M10: Stat 8 | N10: Stat 9 | O10: Stat 10
A11: TRUE | D11: Stat 1 | E11: =IF(E$10=$D11,"",SUMIFS(db!C:C,db!$A:$A,">="&$E$7,db!$A:$A,"<="&$E$8,db!$B:$B,$E$5)*SUMIFS(db!$C:$C,db!$A:$A,">="&$E$7,db!$A:$A,"<="&$E$8,db!$B:$B,$E$5)) ->  | F11: =IF(F$10=$D11,"",SUMIFS(db!D:D,db!$A:$A,">="&$E$7,db!$A:$A,"<="&$E$8,db!$B:$B,$E$5)*SUMIFS(db!$C:$C,db!$A:$A,">="&$E$7,db!$A:$A,"<="&$E$8,db!$B:$B,$E$5)) -> 4247 | G11: =IF(G$10=$D11,"",SUMIFS(db!E:E,db!$A:$A,">="&$E$7,db!$A:$A,"<="&$E$8,db!$B:$B,$E$5)*SUMIFS(db!$C:$C,db!$A:$A,">="&$E$7,db!$A:$A,"<="&$E$8,db!$B:$B,$E$5)) -> 6479 | H11: =IF(H$10=$D11,"",SUMIFS(db!F:F,db!$A:$A,">="&$E$7,db!$A:$A,"<="&$E$8,db!$B:$B,$E$5)*SUMIFS(db!$C:$C,db!$A:$A,">="&$E$7,db!$A:$A,"<="&$E$8,db!$B:$B,$E$5)) -> 13206 | I11: =IF(I$10=$D11,"",SUMIFS(db!G:G,db!$A:$A,">="&$E$7,db!$A:$A,"<="&$E$8,db!$B:$B,$E$5)*SUMIFS(db!$C:$C,db!$A:$A,">="&$E$7,db!$A:$A,"<="&$E$8,db!$B:$B,$E$5)) -> 8835 | K11: =IF(K$10=$D11,"",SUMIFS(db!H:H,db!$A:$A,">="&$E$7,db!$A:$A,"<="&$E$8,db!$B:$B,$E$5)*SUMIFS(db!$C:$C,db!$A:$A,">="&$E$7,db!$A:$A,"<="&$E$8,db!$B:$B,$E$5)) -> 96007 | L11: =IF(L$10=$D11,"",SUMIFS(db!I:I,db!$A:$A,">="&$E$7,db!$A:$A,"<="&$E$8,db!$B:$B,$E$5)*SUMIFS(db!$C:$C,db!$A:$A,">="&$E$7,db!$A:$A,"<="&$E$8,db!$B:$B,$E$5)) -> 443579 | M11: =IF(M$10=$D11,"",SUMIFS(db!J:J,db!$A:$A,">="&$E$7,db!$A:$A,"<="&$E$8,db!$B:$B,$E$5)*SUMIFS(db!$C:$C,db!$A:$A,">="&$E$7,db!$A:$A,"<="&$E$8,db!$B:$B,$E$5)) -> 9009406 | N11: =IF(N$10=$D11,"",SUMIFS(db!K:K,db!$A:$A,">="&$E$7,db!$A:$A,"<="&$E$8,db!$B:$B,$E$5)*SUMIFS(db!$C:$C,db!$A:$A,">="&$E$7,db!$A:$A,"<="&$E$8,db!$B:$B,$E$5)) -> 74.71 | O11: =IF(O$10=$D11,"",SUMIFS(db!L:L,db!$A:$A,">="&$E$7,db!$A:$A,"<="&$E$8,db!$B:$B,$E$5)*SUMIFS(db!$C:$C,db!$A:$A,">="&$E$7,db!$A:$A,"<="&$E$8,db!$B:$B,$E$5)) -> 84430515
A12: TRUE | D12: Stat 2 | E12: =IF(E$10=$D12,"",SUMIFS(db!C:C,db!$A:$A,">="&$E$7,db!$A:$A,"<="&$E$8,db!$B:$B,$E$5)*SUMIFS(db!$D:$D,db!$A:$A,">="&$E$7,db!$A:$A,"<="&$E$8,db!$B:$B,$E$5)) -> 4247 | F12: =IF(F$10=$D12,"",SUMIFS(db!D:D,db!$A:$A,">="&$E$7,db!$A:$A,"<="&$E$8,db!$B:$B,$E$5)*SUMIFS(db!$D:$D,db!$A:$A,">="&$E$7,db!$A:$A,"<="&$E$8,db!$B:$B,$E$5)) ->  | G12: =IF(G$10=$D12,"",SUMIFS(db!E:E,db!$A:$A,">="&$E$7,db!$A:$A,"<="&$E$8,db!$B:$B,$E$5)*SUMIFS(db!$D:$D,db!$A:$A,">="&$E$7,db!$A:$A,"<="&$E$8,db!$B:$B,$E$5)) -> 28633 | H12: =IF(H$10=$D12,"",SUMIFS(db!F:F,db!$A:$A,">="&$E$7,db!$A:$A,"<="&$E$8,db!$B:$B,$E$5)*SUMIFS(db!$D:$D,db!$A:$A,">="&$E$7,db!$A:$A,"<="&$E$8,db!$B:$B,$E$5)) -> 58362 | I12: =IF(I$10=$D12,"",SUMIFS(db!G:G,db!$A:$A,">="&$E$7,db!$A:$A,"<="&$E$8,db!$B:$B,$E$5)*SUMIFS(db!$D:$D,db!$A:$A,">="&$E$7,db!$A:$A,"<="&$E$8,db!$B:$B,$E$5)) -> 39045 | K12: =IF(K$10=$D12,"",SUMIFS(db!H:H,db!$A:$A,">="&$E$7,db!$A:$A,"<="&$E$8,db!$B:$B,$E$5)*SUMIFS(db!$D:$D,db!$A:$A,">="&$E$7,db!$A:$A,"<="&$E$8,db!$B:$B,$E$5)) -> 424289 | L12: =IF(L$10=$D12,"",SUMIFS(db!I:I,db!$A:$A,">="&$E$7,db!$A:$A,"<="&$E$8,db!$B:$B,$E$5)*SUMIFS(db!$D:$D,db!$A:$A,">="&$E$7,db!$A:$A,"<="&$E$8,db!$B:$B,$E$5)) -> 1960333 | M12: =IF(M$10=$D12,"",SUMIFS(db!J:J,db!$A:$A,">="&$E$7,db!$A:$A,"<="&$E$8,db!$B:$B,$E$5)*SUMIFS(db!$D:$D,db!$A:$A,">="&$E$7,db!$A:$A,"<="&$E$8,db!$B:$B,$E$5)) -> 39815762 | N12: =IF(N$10=$D12,"",SUMIFS(db!K:K,db!$A:$A,">="&$E$7,db!$A:$A,"<="&$E$8,db!$B:$B,$E$5)*SUMIFS(db!$D:$D,db!$A:$A,">="&$E$7,db!$A:$A,"<="&$E$8,db!$B:$B,$E$5)) -> 330.17 | O12: =IF(O$10=$D12,"",SUMIFS(db!L:L,db!$A:$A,">="&$E$7,db!$A:$A,"<="&$E$8,db!$B:$B,$E$5)*SUMIFS(db!$D:$D,db!$A:$A,">="&$E$7,db!$A:$A,"<="&$E$8,db!$B:$B,$E$5)) -> 373128405
A13: TRUE | D13: Stat 3 | E13: =IF(E$10=$D13,"",SUMIFS(db!C:C,db!$A:$A,">="&$E$7,db!$A:$A,"<="&$E$8,db!$B:$B,$E$5)*SUMIFS(db!$E:$E,db!$A:$A,">="&$E$7,db!$A:$A,"<="&$E$8,db!$B:$B,$E$5)) -> 6479 | F13: =IF(F$10=$D13,"",SUMIFS(db!D:D,db!$A:$A,">="&$E$7,db!$A:$A,"<="&$E$8,db!$B:$B,$E$5)*SUMIFS(db!$E:$E,db!$A:$A,">="&$E$7,db!$A:$A,"<="&$E$8,db!$B:$B,$E$5)) -> 28633 | G13: =IF(G$10=$D13,"",SUMIFS(db!E:E,db!$A:$A,">="&$E$7,db!$A:$A,"<="&$E$8,db!$B:$B,$E$5)*SUMIFS(db!$E:$E,db!$A:$A,">="&$E$7,db!$A:$A,"<="&$E$8,db!$B:$B,$E$5)) ->  | H13: =IF(H$10=$D13,"",SUMIFS(db!F:F,db!$A:$A,">="&$E$7,db!$A:$A,"<="&$E$8,db!$B:$B,$E$5)*SUMIFS(db!$E:$E,db!$A:$A,">="&$E$7,db!$A:$A,"<="&$E$8,db!$B:$B,$E$5)) -> 89034 | I13: =IF(I$10=$D13,"",SUMIFS(db!G:G,db!$A:$A,">="&$E$7,db!$A:$A,"<="&$E$8,db!$B:$B,$E$5)*SUMIFS(db!$E:$E,db!$A:$A,">="&$E$7,db!$A:$A,"<="&$E$8,db!$B:$B,$E$5)) -> 59565 | K13: =IF(K$10=$D13,"",SUMIFS(db!H:H,db!$A:$A,">="&$E$7,db!$A:$A,"<="&$E$8,db!$B:$B,$E$5)*SUMIFS(db!$E:$E,db!$A:$A,">="&$E$7,db!$A:$A,"<="&$E$8,db!$B:$B,$E$5)) -> 647273 | L13: =IF(L$10=$D13,"",SUMIFS(db!I:I,db!$A:$A,">="&$E$7,db!$A:$A,"<="&$E$8,db!$B:$B,$E$5)*SUMIFS(db!$E:$E,db!$A:$A,">="&$E$7,db!$A:$A,"<="&$E$8,db!$B:$B,$E$5)) -> 2990581 | M13: =IF(M$10=$D13,"",SUMIFS(db!J:J,db!$A:$A,">="&$E$7,db!$A:$A,"<="&$E$8,db!$B:$B,$E$5)*SUMIFS(db!$E:$E,db!$A:$A,">="&$E$7,db!$A:$A,"<="&$E$8,db!$B:$B,$E$5)) -> 60740834 | N13: =IF(N$10=$D13,"",SUMIFS(db!K:K,db!$A:$A,">="&$E$7,db!$A:$A,"<="&$E$8,db!$B:$B,$E$5)*SUMIFS(db!$E:$E,db!$A:$A,">="&$E$7,db!$A:$A,"<="&$E$8,db!$B:$B,$E$5)) -> 503.69 | O13: =IF(O$10=$D13,"",SUMIFS(db!L:L,db!$A:$A,">="&$E$7,db!$A:$A,"<="&$E$8,db!$B:$B,$E$5)*SUMIFS(db!$E:$E,db!$A:$A,">="&$E$7,db!$A:$A,"<="&$E$8,db!$B:$B,$E$5)) -> 569225085
A14: TRUE | D14: Stat 4 | E14: =IF(E$10=$D14,"",SUMIFS(db!C:C,db!$A:$A,">="&$E$7,db!$A:$A,"<="&$E$8,db!$B:$B,$E$5)*SUMIFS(db!$F:$F,db!$A:$A,">="&$E$7,db!$A:$A,"<="&$E$8,db!$B:$B,$E$5)) -> 13206 | F14: =IF(F$10=$D14,"",SUMIFS(db!D:D,db!$A:$A,">="&$E$7,db!$A:$A,"<="&$E$8,db!$B:$B,$E$5)*SUMIFS(db!$F:$F,db!$A:$A,">="&$E$7,db!$A:$A,"<="&$E$8,db!$B:$B,$E$5)) -> 58362 | G14: =IF(G$10=$D14,"",SUMIFS(db!E:E,db!$A:$A,">="&$E$7,db!$A:$A,"<="&$E$8,db!$B:$B,$E$5)*SUMIFS(db!$F:$F,db!$A:$A,">="&$E$7,db!$A:$A,"<="&$E$8,db!$B:$B,$E$5)) -> 89034 | H14: =IF(H$10=$D14,"",SUMIFS(db!F:F,db!$A:$A,">="&$E$7,db!$A:$A,"<="&$E$8,db!$B:$B,$E$5)*SUMIFS(db!$F:$F,db!$A:$A,">="&$E$7,db!$A:$A,"<="&$E$8,db!$B:$B,$E$5)) ->  | I14: =IF(I$10=$D14,"",SUMIFS(db!G:G,db!$A:$A,">="&$E$7,db!$A:$A,"<="&$E$8,db!$B:$B,$E$5)*SUMIFS(db!$F:$F,db!$A:$A,">="&$E$7,db!$A:$A,"<="&$E$8,db!$B:$B,$E$5)) -> 121410 | K14: =IF(K$10=$D14,"",SUMIFS(db!H:H,db!$A:$A,">="&$E$7,db!$A:$A,"<="&$E$8,db!$B:$B,$E$5)*SUMIFS(db!$F:$F,db!$A:$A,">="&$E$7,db!$A:$A,"<="&$E$8,db!$B:$B,$E$5)) -> 1319322 | L14: =IF(L$10=$D14,"",SUMIFS(db!I:I,db!$A:$A,">="&$E$7,db!$A:$A,"<="&$E$8,db!$B:$B,$E$5)*SUMIFS(db!$F:$F,db!$A:$A,">="&$E$7,db!$A:$A,"<="&$E$8,db!$B:$B,$E$5)) -> 6095634 | M14: =IF(M$10=$D14,"",SUMIFS(db!J:J,db!$A:$A,">="&$E$7,db!$A:$A,"<="&$E$8,db!$B:$B,$E$5)*SUMIFS(db!$F:$F,db!$A:$A,">="&$E$7,db!$A:$A,"<="&$E$8,db!$B:$B,$E$5)) -> 123806676 | N14: =IF(N$10=$D14,"",SUMIFS(db!K:K,db!$A:$A,">="&$E$7,db!$A:$A,"<="&$E$8,db!$B:$B,$E$5)*SUMIFS(db!$F:$F,db!$A:$A,">="&$E$7,db!$A:$A,"<="&$E$8,db!$B:$B,$E$5)) -> 1026.66 | O14: =IF(O$10=$D14,"",SUMIFS(db!L:L,db!$A:$A,">="&$E$7,db!$A:$A,"<="&$E$8,db!$B:$B,$E$5)*SUMIFS(db!$F:$F,db!$A:$A,">="&$E$7,db!$A:$A,"<="&$E$8,db!$B:$B,$E$5)) -> 1160238690
A15: TRUE | D15: Stat 5 | E15: =IF(E$10=$D15,"",SUMIFS(db!C:C,db!$A:$A,">="&$E$7,db!$A:$A,"<="&$E$8,db!$B:$B,$E$5)*SUMIFS(db!$G:$G,db!$A:$A,">="&$E$7,db!$A:$A,"<="&$E$8,db!$B:$B,$E$5)) -> 8835 | F15: =IF(F$10=$D15,"",SUMIFS(db!D:D,db!$A:$A,">="&$E$7,db!$A:$A,"<="&$E$8,db!$B:$B,$E$5)*SUMIFS(db!$G:$G,db!$A:$A,">="&$E$7,db!$A:$A,"<="&$E$8,db!$B:$B,$E$5)) -> 39045 | G15: =IF(G$10=$D15,"",SUMIFS(db!E:E,db!$A:$A,">="&$E$7,db!$A:$A,"<="&$E$8,db!$B:$B,$E$5)*SUMIFS(db!$G:$G,db!$A:$A,">="&$E$7,db!$A:$A,"<="&$E$8,db!$B:$B,$E$5)) -> 59565 | H15: =IF(H$10=$D15,"",SUMIFS(db!F:F,db!$A:$A,">="&$E$7,db!$A:$A,"<="&$E$8,db!$B:$B,$E$5)*SUMIFS(db!$G:$G,db!$A:$A,">="&$E$7,db!$A:$A,"<="&$E$8,db!$B:$B,$E$5)) -> 121410 | I15: =IF(I$10=$D15,"",SUMIFS(db!G:G,db!$A:$A,">="&$E$7,db!$A:$A,"<="&$E$8,db!$B:$B,$E$5)*SUMIFS(db!$G:$G,db!$A:$A,">="&$E$7,db!$A:$A,"<="&$E$8,db!$B:$B,$E$5)) ->  | K15: =IF(K$10=$D15,"",SUMIFS(db!H:H,db!$A:$A,">="&$E$7,db!$A:$A,"<="&$E$8,db!$B:$B,$E$5)*SUMIFS(db!$G:$G,db!$A:$A,">="&$E$7,db!$A:$A,"<="&$E$8,db!$B:$B,$E$5)) -> 882645 | L15: =IF(L$10=$D15,"",SUMIFS(db!I:I,db!$A:$A,">="&$E$7,db!$A:$A,"<="&$E$8,db!$B:$B,$E$5)*SUMIFS(db!$G:$G,db!$A:$A,">="&$E$7,db!$A:$A,"<="&$E$8,db!$B:$B,$E$5)) -> 4078065 | M15: =IF(M$10=$D15,"",SUMIFS(db!J:J,db!$A:$A,">="&$E$7,db!$A:$A,"<="&$E$8,db!$B:$B,$E$5)*SUMIFS(db!$G:$G,db!$A:$A,">="&$E$7,db!$A:$A,"<="&$E$8,db!$B:$B,$E$5)) -> 82828410 | N15: =IF(N$10=$D15,"",SUMIFS(db!K:K,db!$A:$A,">="&$E$7,db!$A:$A,"<="&$E$8,db!$B:$B,$E$5)*SUMIFS(db!$G:$G,db!$A:$A,">="&$E$7,db!$A:$A,"<="&$E$8,db!$B:$B,$E$5)) -> 686.85 | O15: =IF(O$10=$D15,"",SUMIFS(db!L:L,db!$A:$A,">="&$E$7,db!$A:$A,"<="&$E$8,db!$B:$B,$E$5)*SUMIFS(db!$G:$G,db!$A:$A,">="&$E$7,db!$A:$A,"<="&$E$8,db!$B:$B,$E$5)) -> 776216025
A16: =$E$5="Compsognathus" -> FALSE
A17: TRUE | D17: Stat 6 | E17: =IF(E$10=$D17,"",SUMIFS(db!C:C,db!$A:$A,">="&$E$7,db!$A:$A,"<="&$E$8,db!$B:$B,$E$5)*SUMIFS(db!$H:$H,db!$A:$A,">="&$E$7,db!$A:$A,"<="&$E$8,db!$B:$B,$E$5)) -> 96007 | F17: =IF(F$10=$D17,"",SUMIFS(db!D:D,db!$A:$A,">="&$E$7,db!$A:$A,"<="&$E$8,db!$B:$B,$E$5)*SUMIFS(db!$H:$H,db!$A:$A,">="&$E$7,db!$A:$A,"<="&$E$8,db!$B:$B,$E$5)) -> 424289 | G17: =IF(G$10=$D17,"",SUMIFS(db!E:E,db!$A:$A,">="&$E$7,db!$A:$A,"<="&$E$8,db!$B:$B,$E$5)*SUMIFS(db!$H:$H,db!$A:$A,">="&$E$7,db!$A:$A,"<="&$E$8,db!$B:$B,$E$5)) -> 647273 | H17: =IF(H$10=$D17,"",SUMIFS(db!F:F,db!$A:$A,">="&$E$7,db!$A:$A,"<="&$E$8,db!$B:$B,$E$5)*SUMIFS(db!$H:$H,db!$A:$A,">="&$E$7,db!$A:$A,"<="&$E$8,db!$B:$B,$E$5)) -> 1319322 | I17: =IF(I$10=$D17,"",SUMIFS(db!G:G,db!$A:$A,">="&$E$7,db!$A:$A,"<="&$E$8,db!$B:$B,$E$5)*SUMIFS(db!$H:$H,db!$A:$A,">="&$E$7,db!$A:$A,"<="&$E$8,db!$B:$B,$E$5)) -> 882645 | K17: =IF(K$10=$D17,"",SUMIFS(db!H:H,db!$A:$A,">="&$E$7,db!$A:$A,"<="&$E$8,db!$B:$B,$E$5)*SUMIFS(db!$H:$H,db!$A:$A,">="&$E$7,db!$A:$A,"<="&$E$8,db!$B:$B,$E$5)) ->  | L17: =IF(L$10=$D17,"",SUMIFS(db!I:I,db!$A:$A,">="&$E$7,db!$A:$A,"<="&$E$8,db!$B:$B,$E$5)*SUMIFS(db!$H:$H,db!$A:$A,">="&$E$7,db!$A:$A,"<="&$E$8,db!$B:$B,$E$5)) -> 44314973 | M17: =IF(M$10=$D17,"",SUMIFS(db!J:J,db!$A:$A,">="&$E$7,db!$A:$A,"<="&$E$8,db!$B:$B,$E$5)*SUMIFS(db!$H:$H,db!$A:$A,">="&$E$7,db!$A:$A,"<="&$E$8,db!$B:$B,$E$5)) -> 900068722 | N17: =IF(N$10=$D17,"",SUMIFS(db!K:K,db!$A:$A,">="&$E$7,db!$A:$A,"<="&$E$8,db!$B:$B,$E$5)*SUMIFS(db!$H:$H,db!$A:$A,">="&$E$7,db!$A:$A,"<="&$E$8,db!$B:$B,$E$5)) -> 7463.77 | O17: =IF(O$10=$D17,"",SUMIFS(db!L:L,db!$A:$A,">="&$E$7,db!$A:$A,"<="&$E$8,db!$B:$B,$E$5)*SUMIFS(db!$H:$H,db!$A:$A,">="&$E$7,db!$A:$A,"<="&$E$8,db!$B:$B,$E$5)) -> 8434880805
A18: TRUE | D18: Stat 7 | E18: =IF(E$10=$D18,"",SUMIFS(db!C:C,db!$A:$A,">="&$E$7,db!$A:$A,"<="&$E$8,db!$B:$B,$E$5)*SUMIFS(db!$I:$I,db!$A:$A,">="&$E$7,db!$A:$A,"<="&$E$8,db!$B:$B,$E$5)) -> 443579 | F18: =IF(F$10=$D18,"",SUMIFS(db!D:D,db!$A:$A,">="&$E$7,db!$A:$A,"<="&$E$8,db!$B:$B,$E$5)*SUMIFS(db!$I:$I,db!$A:$A,">="&$E$7,db!$A:$A,"<="&$E$8,db!$B:$B,$E$5)) -> 1960333 | G18: =IF(G$10=$D18,"",SUMIFS(db!E:E,db!$A:$A,">="&$E$7,db!$A:$A,"<="&$E$8,db!$B:$B,$E$5)*SUMIFS(db!$I:$I,db!$A:$A,">="&$E$7,db!$A:$A,"<="&$E$8,db!$B:$B,$E$5)) -> 2990581 | H18: =IF(H$10=$D18,"",SUMIFS(db!F:F,db!$A:$A,">="&$E$7,db!$A:$A,"<="&$E$8,db!$B:$B,$E$5)*SUMIFS(db!$I:$I,db!$A:$A,">="&$E$7,db!$A:$A,"<="&$E$8,db!$B:$B,$E$5)) -> 6095634 | I18: =IF(I$10=$D18,"",SUMIFS(db!G:G,db!$A:$A,">="&$E$7,db!$A:$A,"<="&$E$8,db!$B:$B,$E$5)*SUMIFS(db!$I:$I,db!$A:$A,">="&$E$7,db!$A:$A,"<="&$E$8,db!$B:$B,$E$5)) -> 4078065 | K18: =IF(K$10=$D18,"",SUMIFS(db!H:H,db!$A:$A,">="&$E$7,db!$A:$A,"<="&$E$8,db!$B:$B,$E$5)*SUMIFS(db!$I:$I,db!$A:$A,">="&$E$7,db!$A:$A,"<="&$E$8,db!$B:$B,$E$5)) -> 44314973 | L18: =IF(L$10=$D18,"",SUMIFS(db!I:I,db!$A:$A,">="&$E$7,db!$A:$A,"<="&$E$8,db!$B:$B,$E$5)*SUMIFS(db!$I:$I,db!$A:$A,">="&$E$7,db!$A:$A,"<="&$E$8,db!$B:$B,$E$5)) ->  | M18: =IF(M$10=$D18,"",SUMIFS(db!J:J,db!$A:$A,">="&$E$7,db!$A:$A,"<="&$E$8,db!$B:$B,$E$5)*SUMIFS(db!$I:$I,db!$A:$A,">="&$E$7,db!$A:$A,"<="&$E$8,db!$B:$B,$E$5)) -> 4158567434 | N18: =IF(N$10=$D18,"",SUMIFS(db!K:K,db!$A:$A,">="&$E$7,db!$A:$A,"<="&$E$8,db!$B:$B,$E$5)*SUMIFS(db!$I:$I,db!$A:$A,">="&$E$7,db!$A:$A,"<="&$E$8,db!$B:$B,$E$5)) -> 34484.69 | O18: =IF(O$10=$D18,"",SUMIFS(db!L:L,db!$A:$A,">="&$E$7,db!$A:$A,"<="&$E$8,db!$B:$B,$E$5)*SUMIFS(db!$I:$I,db!$A:$A,">="&$E$7,db!$A:$A,"<="&$E$8,db!$B:$B,$E$5)) -> 38971491585
A19: TRUE | D19: Stat 8 | E19: =IF(E$10=$D19,"",SUMIFS(db!C:C,db!$A:$A,">="&$E$7,db!$A:$A,"<="&$E$8,db!$B:$B,$E$5)*SUMIFS(db!$J:$J,db!$A:$A,">="&$E$7,db!$A:$A,"<="&$E$8,db!$B:$B,$E$5)) -> 9009406 | F19: =IF(F$10=$D19,"",SUMIFS(db!D:D,db!$A:$A,">="&$E$7,db!$A:$A,"<="&$E$8,db!$B:$B,$E$5)*SUMIFS(db!$J:$J,db!$A:$A,">="&$E$7,db!$A:$A,"<="&$E$8,db!$B:$B,$E$5)) -> 39815762 | G19: =IF(G$10=$D19,"",SUMIFS(db!E:E,db!$A:$A,">="&$E$7,db!$A:$A,"<="&$E$8,db!$B:$B,$E$5)*SUMIFS(db!$J:$J,db!$A:$A,">="&$E$7,db!$A:$A,"<="&$E$8,db!$B:$B,$E$5)) -> 60740834 | H19: =IF(H$10=$D19,"",SUMIFS(db!F:F,db!$A:$A,">="&$E$7,db!$A:$A,"<="&$E$8,db!$B:$B,$E$5)*SUMIFS(db!$J:$J,db!$A:$A,">="&$E$7,db!$A:$A,"<="&$E$8,db!$B:$B,$E$5)) -> 123806676 | I19: =IF(I$10=$D19,"",SUMIFS(db!G:G,db!$A:$A,">="&$E$7,db!$A:$A,"<="&$E$8,db!$B:$B,$E$5)*SUMIFS(db!$J:$J,db!$A:$A,">="&$E$7,db!$A:$A,"<="&$E$8,db!$B:$B,$E$5)) -> 82828410 | K19: =IF(K$10=$D19,"",SUMIFS(db!H:H,db!$A:$A,">="&$E$7,db!$A:$A,"<="&$E$8,db!$B:$B,$E$5)*SUMIFS(db!$J:$J,db!$A:$A,">="&$E$7,db!$A:$A,"<="&$E$8,db!$B:$B,$E$5)) -> 900068722 | L19: =IF(L$10=$D19,"",SUMIFS(db!I:I,db!$A:$A,">="&$E$7,db!$A:$A,"<="&$E$8,db!$B:$B,$E$5)*SUMIFS(db!$J:$J,db!$A:$A,">="&$E$7,db!$A:$A,"<="&$E$8,db!$B:$B,$E$5)) -> 4158567434 | M19: =IF(M$10=$D19,"",SUMIFS(db!J:J,db!$A:$A,">="&$E$7,db!$A:$A,"<="&$E$8,db!$B:$B,$E$5)*SUMIFS(db!$J:$J,db!$A:$A,">="&$E$7,db!$A:$A,"<="&$E$8,db!$B:$B,$E$5)) ->  | N19: =IF(N$10=$D19,"",SUMIFS(db!K:K,db!$A:$A,">="&$E$7,db!$A:$A,"<="&$E$8,db!$B:$B,$E$5)*SUMIFS(db!$J:$J,db!$A:$A,">="&$E$7,db!$A:$A,"<="&$E$8,db!$B:$B,$E$5)) -> 700408.66 | O19: =IF(O$10=$D19,"",SUMIFS(db!L:L,db!$A:$A,">="&$E$7,db!$A:$A,"<="&$E$8,db!$B:$B,$E$5)*SUMIFS(db!$J:$J,db!$A:$A,">="&$E$7,db!$A:$A,"<="&$E$8,db!$B:$B,$E$5)) -> 791538801690
A20: TRUE | D20: Stat 9 | E20: =IF(E$10=$D20,"",SUMIFS(db!C:C,db!$A:$A,">="&$E$7,db!$A:$A,"<="&$E$8,db!$B:$B,$E$5)*SUMIFS(db!$K:$K,db!$A:$A,">="&$E$7,db!$A:$A,"<="&$E$8,db!$B:$B,$E$5)) -> 74.71 | F20: =IF(F$10=$D20,"",SUMIFS(db!D:D,db!$A:$A,">="&$E$7,db!$A:$A,"<="&$E$8,db!$B:$B,$E$5)*SUMIFS(db!$K:$K,db!$A:$A,">="&$E$7,db!$A:$A,"<="&$E$8,db!$B:$B,$E$5)) -> 330.17 | G20: =IF(G$10=$D20,"",SUMIFS(db!E:E,db!$A:$A,">="&$E$7,db!$A:$A,"<="&$E$8,db!$B:$B,$E$5)*SUMIFS(db!$K:$K,db!$A:$A,">="&$E$7,db!$A:$A,"<="&$E$8,db!$B:$B,$E$5)) -> 503.69 | H20: =IF(H$10=$D20,"",SUMIFS(db!F:F,db!$A:$A,">="&$E$7,db!$A:$A,"<="&$E$8,db!$B:$B,$E$5)*SUMIFS(db!$K:$K,db!$A:$A,">="&$E$7,db!$A:$A,"<="&$E$8,db!$B:$B,$E$5)) -> 1026.66 | I20: =IF(I$10=$D20,"",SUMIFS(db!G:G,db!$A:$A,">="&$E$7,db!$A:$A,"<="&$E$8,db!$B:$B,$E$5)*SUMIFS(db!$K:$K,db!$A:$A,">="&$E$7,db!$A:$A,"<="&$E$8,db!$B:$B,$E$5)) -> 686.85 | K20: =IF(K$10=$D20,"",SUMIFS(db!H:H,db!$A:$A,">="&$E$7,db!$A:$A,"<="&$E$8,db!$B:$B,$E$5)*SUMIFS(db!$K:$K,db!$A:$A,">="&$E$7,db!$A:$A,"<="&$E$8,db!$B:$B,$E$5)) -> 7463.77 | L20: =IF(L$10=$D20,"",SUMIFS(db!I:I,db!$A:$A,">="&$E$7,db!$A:$A,"<="&$E$8,db!$B:$B,$E$5)*SUMIFS(db!$K:$K,db!$A:$A,">="&$E$7,db!$A:$A,"<="&$E$8,db!$B:$B,$E$5)) -> 34484.69 | M20: =IF(M$10=$D20,"",SUMIFS(db!J:J,db!$A:$A,">="&$E$7,db!$A:$A,"<="&$E$8,db!$B:$B,$E$5)*SUMIFS(db!$K:$K,db!$A:$A,">="&$E$7,db!$A:$A,"<="&$E$8,db!$B:$B,$E$5)) -> 700408.66 | N20: =IF(N$10=$D20,"",SUMIFS(db!K:K,db!$A:$A,">="&$E$7,db!$A:$A,"<="&$E$8,db!$B:$B,$E$5)*SUMIFS(db!$K:$K,db!$A:$A,">="&$E$7,db!$A:$A,"<="&$E$8,db!$B:$B,$E$5)) ->  | O20: =IF(O$10=$D20,"",SUMIFS(db!L:L,db!$A:$A,">="&$E$7,db!$A:$A,"<="&$E$8,db!$B:$B,$E$5)*SUMIFS(db!$K:$K,db!$A:$A,">="&$E$7,db!$A:$A,"<="&$E$8,db!$B:$B,$E$5)) -> 6563791.65
A21: TRUE | D21: Stat 10 | E21: =IF(E$10=$D21,"",SUMIFS(db!C:C,db!$A:$A,">="&$E$7,db!$A:$A,"<="&$E$8,db!$B:$B,$E$5)*SUMIFS(db!$L:$L,db!$A:$A,">="&$E$7,db!$A:$A,"<="&$E$8,db!$B:$B,$E$5)) -> 84430515 | F21: =IF(F$10=$D21,"",SUMIFS(db!D:D,db!$A:$A,">="&$E$7,db!$A:$A,"<="&$E$8,db!$B:$B,$E$5)*SUMIFS(db!$L:$L,db!$A:$A,">="&$E$7,db!$A:$A,"<="&$E$8,db!$B:$B,$E$5)) -> 373128405 | G21: =IF(G$10=$D21,"",SUMIFS(db!E:E,db!$A:$A,">="&$E$7,db!$A:$A,"<="&$E$8,db!$B:$B,$E$5)*SUMIFS(db!$L:$L,db!$A:$A,">="&$E$7,db!$A:$A,"<="&$E$8,db!$B:$B,$E$5)) -> 569225085 | H21: =IF(H$10=$D21,"",SUMIFS(db!F:F,db!$A:$A,">="&$E$7,db!$A:$A,"<="&$E$8,db!$B:$B,$E$5)*SUMIFS(db!$L:$L,db!$A:$A,">="&$E$7,db!$A:$A,"<="&$E$8,db!$B:$B,$E$5)) -> 1160238690 | I21: =IF(I$10=$D21,"",SUMIFS(db!G:G,db!$A:$A,">="&$E$7,db!$A:$A,"<="&$E$8,db!$B:$B,$E$5)*SUMIFS(db!$L:$L,db!$A:$A,">="&$E$7,db!$A:$A,"<="&$E$8,db!$B:$B,$E$5)) -> 776216025 | K21: =IF(K$10=$D21,"",SUMIFS(db!H:H,db!$A:$A,">="&$E$7,db!$A:$A,"<="&$E$8,db!$B:$B,$E$5)*SUMIFS(db!$L:$L,db!$A:$A,">="&$E$7,db!$A:$A,"<="&$E$8,db!$B:$B,$E$5)) -> 8434880805 | L21: =IF(L$10=$D21,"",SUMIFS(db!I:I,db!$A:$A,">="&$E$7,db!$A:$A,"<="&$E$8,db!$B:$B,$E$5)*SUMIFS(db!$L:$L,db!$A:$A,">="&$E$7,db!$A:$A,"<="&$E$8,db!$B:$B,$E$5)) -> 38971491585 | M21: =IF(M$10=$D21,"",SUMIFS(db!J:J,db!$A:$A,">="&$E$7,db!$A:$A,"<="&$E$8,db!$B:$B,$E$5)*SUMIFS(db!$L:$L,db!$A:$A,">="&$E$7,db!$A:$A,"<="&$E$8,db!$B:$B,$E$5)) -> 791538801690 | N21: =IF(N$10=$D21,"",SUMIFS(db!K:K,db!$A:$A,">="&$E$7,db!$A:$A,"<="&$E$8,db!$B:$B,$E$5)*SUMIFS(db!$L:$L,db!$A:$A,">="&$E$7,db!$A:$A,"<="&$E$8,db!$B:$B,$E$5)) -> 6563791.65 | O21: =IF(O$10=$D21,"",SUMIFS(db!L:L,db!$A:$A,">="&$E$7,db!$A:$A,"<="&$E$8,db!$B:$B,$E$5)*SUMIFS(db!$L:$L,db!$A:$A,">="&$E$7,db!$A:$A,"<="&$E$8,db!$B:$B,$E$5)) -> 

Sheet Report 2
A1: FALSE | B1: TRUE | C1: TRUE | D1: TRUE | E1: =$F$5="Compsognathus" -> FALSE | F1: TRUE
A2: TRUE
A3: TRUE | C3: ="Stat Totals | "&F5&" | "&TEXT(F7,"d/m/y")&" to "&TEXT(F8,"d/m/y") -> Stat Totals | Baryonyx | 1/1/15 to 1/5/15
A4: TRUE
A5: TRUE | D5: Genus | F5: Baryonyx
A6: TRUE
A7: TRUE | D7: Start Date | F7: 2015-01-01
A8: TRUE | D8: End Date | F8: 2015-05-01
A9: TRUE
A10: TRUE
A11: TRUE | D11: Stat | F11: Total
A12: TRUE | D12: Stat 1 | F12: =SUMIFS(db!$C:$C,db!$A:$A,">="&$F$7,db!$A:$A,"<="&$F$8,db!$B:$B,$F$5) -> 31
A13: TRUE | D13: Stat 2 | F13: =SUMIFS(db!$D:$D,db!$A:$A,">="&$F$7,db!$A:$A,"<="&$F$8,db!$B:$B,$F$5) -> 137
A14: TRUE | D14: Stat 3 | F14: =SUMIFS(db!$E:$E,db!$A:$A,">="&$F$7,db!$A:$A,"<="&$F$8,db!$B:$B,$F$5) -> 209
A15: TRUE | D15: Stat 4 | F15: =SUMIFS(db!$F:$F,db!$A:$A,">="&$F$7,db!$A:$A,"<="&$F$8,db!$B:$B,$F$5) -> 426
A16: TRUE | D16: Stat 5 | F16: =SUMIFS(db!$G:$G,db!$A:$A,">="&$F$7,db!$A:$A,"<="&$F$8,db!$B:$B,$F$5) -> 285
A17: =$F$5="Compsognathus" -> FALSE
A18: TRUE | D18: Stat 6 | F18: =SUMIFS(db!$H:$H,db!$A:$A,">="&$F$7,db!$A:$A,"<="&$F$8,db!$B:$B,$F$5) -> 3097
A19: TRUE | D19: Stat 7 | F19: =SUMIFS(db!$I:$I,db!$A:$A,">="&$F$7,db!$A:$A,"<="&$F$8,db!$B:$B,$F$5) -> 14309
A20: TRUE | D20: Stat 8 | F20: =SUMIFS(db!$J:$J,db!$A:$A,">="&$F$7,db!$A:$A,"<="&$F$8,db!$B:$B,$F$5) -> 290626
A21: TRUE | D21: Stat 9 | F21: =SUMIFS(db!$K:$K,db!$A:$A,">="&$F$7,db!$A:$A,"<="&$F$8,db!$B:$B,$F$5) -> 2.41
A22: TRUE | D22: Stat 10 | F22: =SUMIFS(db!$L:$L,db!$A:$A,">="&$F$7,db!$A:$A,"<="&$F$8,db!$B:$B,$F$5) -> 2723565

Sheet Report 3
A1: FALSE | B1: TRUE | C1: TRUE | D1: TRUE | E1: TRUE | F1: =$E$5="Compsognathus" -> FALSE | G1: TRUE | H1: TRUE | I1: TRUE | J1: TRUE
A2: TRUE
A3: TRUE | C3: ="Monthly Stat Trending | "&E5&" | "&TEXT(E7,"d/m/y")&" to "&TEXT(E8,"d/m/y") -> Monthly Stat Trending | Baryonyx | 1/1/15 to 1/5/15
A4: TRUE
A5: TRUE | D5: Genus | E5: Baryonyx
A6: TRUE
A7: TRUE | D7: Start Date | E7: 2015-01-01
A8: TRUE | D8: End Date | E8: 2015-05-01
A9: TRUE
A10: TRUE
A11: TRUE | E11: =E7 -> 2015-01-01 | G11: =IF(DATE(YEAR(E11),MONTH(E11)+1,1)<=$E$8,DATE(YEAR(E11),MONTH(E11)+1,1),NA()) -> 2015-02-01 | H11: =IF(DATE(YEAR(G11),MONTH(G11)+1,1)<=$E$8,DATE(YEAR(G11),MONTH(G11)+1,1),NA()) -> 2015-03-01 | I11: =IF(DATE(YEAR(H11),MONTH(H11)+1,1)<=$E$8,DATE(YEAR(H11),MONTH(H11)+1,1),NA()) -> 2015-04-01 | J11: =IF(DATE(YEAR(I11),MONTH(I11)+1,1)<=$E$8,DATE(YEAR(I11),MONTH(I11)+1,1),NA()) -> 2015-05-01
A12: TRUE | D12: Stat 4 | E12: =SUMIFS(db!$F:$F,db!$A:$A,E$11,db!$B:$B,$E$5) -> 35 | G12: =SUMIFS(db!$F:$F,db!$A:$A,G$11,db!$B:$B,$E$5) -> 223 | H12: =SUMIFS(db!$F:$F,db!$A:$A,H$11,db!$B:$B,$E$5) -> 65 | I12: =SUMIFS(db!$F:$F,db!$A:$A,I$11,db!$B:$B,$E$5) -> 39 | J12: =SUMIFS(db!$F:$F,db!$A:$A,J$11,db!$B:$B,$E$5) -> 64
A13: =$E$5="Compsognathus" -> FALSE
A14: TRUE | D14: Stat 5 | E14: =SUMIFS(db!$G:$G,db!$A:$A,E$11,db!$B:$B,$E$5) -> 25 | G14: =SUMIFS(db!$G:$G,db!$A:$A,G$11,db!$B:$B,$E$5) -> 25 | H14: =SUMIFS(db!$G:$G,db!$A:$A,H$11,db!$B:$B,$E$5) -> 3 | I14: =SUMIFS(db!$G:$G,db!$A:$A,I$11,db!$B:$B,$E$5) -> 115 | J14: =SUMIFS(db!$G:$G,db!$A:$A,J$11,db!$B:$B,$E$5) -> 117
A15: TRUE
A16: TRUE
A17: TRUE
A18: TRUE
A19: TRUE
A20: TRUE
A21: TRUE
A22: TRUE
A23: TRUE
A24: TRUE
A25: TRUE
A26: TRUE
A27: TRUE
A28: TRUE
A29: TRUE
